Cogmind - Beta 13 @@@ ROGUE MODE // 2024.03.18 @ 11:24:03 Player: Oldman Pu Result: Destroyed by S-10 Pest with Light Assault Rifle Performance ------------- Evolutions (0) 0 Regions Visited (1) 200 Robots Destroyed (20) 100 Value Destroyed (378) 378 Prototype IDs (0) 0 Alien Tech Used (0) 0 Bonus (0) 0 TOTAL SCORE: 678 Bonus ------- None Cogmind --------- Core Integrity 0/250 Matter 286/300 Energy 125/125 System Corruption 0% Temperature Warm (140) Movement Rolling (80) Location -10/Materials Parts ------- > --- POWER (1) -------- Light Ion Engine > --- PROPULSION (2) --- Wheel Wheel > --- UTILITY (2) ------ Small Storage Unit Utility Shielding > --- WEAPON (2) ------- Beam Cannon Light Assault Rifle > --- INVENTORY (8) ---- Large Matter Pod (150) Beam Cannon Beam Cannon Peak State ------------ > --- POWER ------------ Light Ion Engine > --- PROPULSION ------- Wheel Compact Wheel > --- UTILITY ---------- Small Storage Unit Utility Shielding > --- WEAPON ----------- Beam Cannon Light Assault Rifle > --- INVENTORY -------- EM Pulse Gun Beam Cannon Beam Cannon Light Assault Rifle [Rating: 7] Favorites ----------- Power Light Ion Engine Engine Light Ion Engine Propulsion Wheel Wheel Wheel Utility Small Storage Unit Storage Small Storage Unit Protection Utility Shielding Weapon Light Assault Rifle Energy Gun EM Pulse Gun Energy Cannon Beam Cannon Ballistic Gun Light Assault Rifle Build | -11 -10 ------- Run | Yrd Mat Slots Evolved . | . . Power . | . . Propulsion . | . . Utility . | . . Weapon . | . . Parts Attached 18 | 5 13 Power 2 | 1 1 Engine 2 | 1 1 Core . | . . Reactor . | . . Propulsion 5 | 2 3 Treads . | . . Leg . | . . Wheel 5 | 2 3 Hover . | . . Flight . | . . Utility 2 | . 2 Device . | . . Storage 1 | . 1 Processor . | . . Hackware . | . . Protection 1 | . 1 Artifact . | . . Weapon 9 | 2 7 Energy Gun 2 | 1 1 Energy Cannon 1 | . 1 Ballistic Gun 6 | 1 5 Ballistic Cannon . | . . Launcher . | . . Special Weapon . | . . Impact Weapon . | . . Slashing Weapon . | . . Piercing Weapon . | . . Special Melee Weapon . | . . Unidentified Prototypes . | . . Parts Lost 7 | . 7 Power 1 | . 1 Propulsion 3 | . 3 Utility . | . . Weapon 3 | . 3 Highest Loss Streak 3 | . 3 To Critical Strikes . | . . Average Slot Usage (%) 74 | . 74 Engine 12 | . 12 Wheel 15 | . 15 Storage 11 | . 11 Protection 7 | . 7 Energy Gun 2 | . 2 Energy Cannon 6 | . 6 Ballistic Gun 17 | . 17 Naked Turns . | . . Heaviest Build 13 | 6 13 Greatest Support 26 | 26 26 Greatest Overweight (x) 4 | . 4 Average Overweight (x) . | . . Largest Inventory Capacity 8 | 5 8 Average Capacity 7 | 5 7 Most Carried 5 | . 5 Average Carried 2 | . 3 Final Capacity 8 | 5 8 Final Carried 3 | . 3 Class Distribution -------------------- 100% | Mutant Dominant Class ---------------- Mutant | -10/Materials Resources | -11 -10 ----------- Run | Yrd Mat Matter Collected 593 | 235 358 Remotely . | . . Salvage Created 677 | . 677 Parts 43 | . 43 Haulers Intercepted 2 | . 2 Recyclers Shooed 1 | . 1 Parts Field Recycled . | . . Retrieved Matter . | . . Parts Self-Destructed . | . . Prevented . | . . Kills | -11 -10 ------- Run | Yrd Mat Combat Hostiles Destroyed 10 | . 10 Guns 4 | . 4 Cannons 5 | . 5 AOE 1 | . 1 Classes Destroyed 9 | . 9 Worker 1 | . 1 Builder 1 | . 1 Tunneler 1 | . 1 Hauler 2 | . 2 Recycler 1 | . 1 Operator 1 | . 1 Watcher 3 | . 3 Swarmer 3 | . 3 Grunt 7 | . 7 Best Kill Streak 5 | . 5 Combat Bots Only 3 | . 3 Max Kills in Single Turn 1 | . 1 Gunslinging . | . . Exploded 1 | . 1 Melee . | . . Uniques/NPCs Destroyed . | . . Combat | -11 -10 -------- Run | Yrd Mat Hostile Shots Fired 105 | . 105 Missed 30 | . 30 Damage Taken 845 | . 845 Core 255 | . 255 Absorbed by Shields . | . . Redirected to Shielding 10 | . 10 Core Remaining (%) 100 | 100 . Volleys Fired 77 | . 77 Largest 2 | . 2 Hottest 80 | . 80 Shots Fired 148 | . 148 Gun 112 | . 112 Cannon 36 | . 36 Launcher . | . . Special . | . . Kinetic 107 | . 107 Thermal 36 | . 36 Explosive . | . . Electromagnetic 5 | . 5 Robot Hit Streak 20 | . 20 Robot Miss Streak 7 | . 7 Penetration Max . | . . Secondary Targets 1 | . 1 Max Gunslinging Chain 1 | . 1 Shots Hit Robots 93 | . 93 Core Hits 36 | . 36 Critical Kills 1 | . 1 Critical Parts Destroyed 1 | . 1 Critical Strikes 2 | . 2 Meltdown 1 | . 1 Destroy 1 | . 1 Melee Attacks . | . . Impact . | . . Slashing . | . . Piercing . | . . Sneak Attacks . | . . Combat Hostiles . | . . Follow-up Attacks . | . . Damage Inflicted 1134 | . 1134 Guns 578 | . 578 Cannons 509 | . 509 Explosions 47 | . 47 Melee . | . . Ramming . | . . Kinetic 538 | . 538 Thermal 556 | . 556 Explosive . | . . Electromagnetic 40 | . 40 Impact . | . . Slashing . | . . Piercing . | . . Highest Corruption . | . . Average Corruption . | . . Corruption Purged . | . . Corruption Blocked . | . . Overload Shots . | . . Overflow Damage 19 | . 19 Projectiles 19 | . 19 Explosions . | . . Melee . | . . Knockbacks . | . . Impact . | . . Kinetic . | . . Secondary . | . . Self-Inflicted Damage 35 | . 35 Shots 1 | . 1 Rammed . | . . Targets Rammed . | . . Kicked . | . . Crushed . | . . Highest Temperature 182 | . 182 Average Temperature 44 | . 44 Received Heat Transfer 276 | . 276 Siege Activations . | . . Robots Corrupted . | . . Combat Hostiles . | . . Parts Fried . | . . Impact Corruptions . | . . Robots Melted 1 | . 1 Combat Hostiles . | . . Parts Melted 3 | . 3 Heat Transferred 1073 | . 1073 Parts Sabotaged . | . . Parts Stolen . | . . Parts Stripped . | . . Power Chain Reactions 1 | . 1 Alert | -11 -10 ------- Run | Yrd Mat Peak Influence 271 | . 271 Initial . | . . Average 108 | . 117 Maximum Alert Level 1 | . 1 Low Security (%) 85 | 100 84 Level 1 14 | . 15 Level 2 . | . . Level 3 . | . . Level 4 . | . . Level 5 . | . . High Security . | . . Max Security . | . . Squads Dispatched 3 | . 3 Investigation 1 | . 1 Extermination . | . . Reinforcement 2 | . 2 Assault . | . . Garrison . | . . Intercept . | . . Searches Triggered . | . . Construction Impeded . | . . Haulers Reinforced . | . . Active Scanning Responses . | . . Cargo Convoy Interrupts . | . . Stealth | -11 -10 --------- Run | Yrd Mat Distress Signals 1 | . 1 Communications Jammed . | . . Distress Signals . | . . Times Spotted 26 | . 26 Peak Tracking Total 6 | . 6 Tactical Retreats . | . . Traps | -11 -10 ------- Run | Yrd Mat Traps Triggered 2 | . 2 Indirectly . | . . Trap Hack Attempts . | . . Triggered . | . . Disarmed . | . . Reprogrammed . | . . Reused . | . . Traps Extracted . | . . Installed . | . . Triggered . | . . Machines | -11 -10 ---------- Run | Yrd Mat Machines Disabled 1 | . 1 Max in Single Turn 1 | . 1 Machines Repaired . | . . Machines Dismantled . | . . Machines Sabotaged . | . . Overloaded Fab Kills . | . . Hacking | -11 -10 --------- Run | Yrd Mat Machines Accessed 1 | . 1 Terminals 1 | . 1 Fabricators . | . . Repair Stations . | . . Recycling Units . | . . Scanalyzers . | . . Garrison Access . | . . Total Hacks 2 | . 2 Successful . | . . Failed 2 | . 2 Catastrophic 1 | . 1 Database Lockouts . | . . Manual . | . . Terminals 2 | . 2 Fabricators . | . . Repair Stations . | . . Recycling Units . | . . Scanalyzers . | . . Garrison Access . | . . Terminal Hacks . | . . Fabricator Hacks . | . . Repair Station Hacks . | . . Recycling Unit Hacks . | . . Scanalyzer . | . . Garrison Access Hacks . | . . Unauthorized Hacks . | . . Terminals . | . . Fabricators . | . . Repair Stations . | . . Recycling Units . | . . Scanalyzers . | . . Garrison Access . | . . Data Cores Recovered . | . . Used . | . . Hacking Detections 1 | . 1 Full Trace Events . | . . Feedback Events . | . . Feedback Blocked . | . . Robot Schematics Acquired . | . . Robots Built . | . . Authchips . | . . Time . | . . Total Robot Build Rating . | . . Part Schematics Acquired . | . . Parts Built . | . . Authchips . | . . Time . | . . Total Part Build Rating . | . . Parts Repaired . | . . Time . | . . Parts Recycled . | . . Recycled Matter . | . . Retrieved Matter . | . . Retrieved Components . | . . Parts Scanalyzed . | . . Part Schematics Acquired . | . . Parts Damaged . | . . Bothacking | -11 -10 ------------ Run | Yrd Mat Used RIF Installer . | . . Robots Hacked . | . . Non-combat . | . . Combat . | . . Robot Hacks Applied . | . . Relay Couplers Released . | . . Fabnet Peak Effective % . | . . Robots Rewired . | . . Allies Hacked . | . . Hacks Repelled . | . . Allies | -11 -10 -------- Run | Yrd Mat Total Allies . | . . Largest Group . | . . Highest-Rated Group . | . . Highest-Rated Ally . | . . Total Orders . | . . Ally Attacks . | . . Total Damage . | . . Kills . | . . Allies Corrupted . | . . Allies Melted . | . . Intel | -11 -10 ------- Run | Yrd Mat Robot Analysis Total . | . . Derelict Logs Recovered . | . . Drone Launches . | . . Drone Recoveries . | . . Exploration | -11 -10 ------------- Run | Yrd Mat Turns Passed 488 | 35 453 Spaces Moved 198 | 32 166 Core 33 | 1 32 Treads . | . . Legs . | . . Wheels 165 | 31 134 Hover . | . . Flight . | . . Fastest Speed 50 | 50 80 Average Speed 108 | 87 112 Slowest Speed 250 | 90 250 Overloaded Moves . | . . Propulsion Burnouts . | . . Robots Hopped . | . . Cave-ins Triggered . | . . Exploration Rate (%) 24 | 4 45 Regions Visited 1 Branch Regions . Pre-discovered Areas . | . . Known Exits Taken . | . . Unknown Exits Taken 1 | 1 . Scrap Searched . | . . Spaces Dug . | . . Terrain Destroyed 2 | . 2 Melee . | . . Projectile . | . . AOE 2 | . 2 Terrain Rammed . | . . Walls Destroyed . | . . Machines Disabled . | . . Actions | -11 -10 --------- Run | Yrd Mat Total 337 | 36 301 Wait 38 | . 38 Move 197 | 31 166 Hop . | . . Pick Up 6 | . 6 Fast Attach 13 | 5 8 Attach 3 | . 3 Detach . | . . Swap 2 | . 2 Drop 1 | . 1 Fire 77 | . 77 Melee . | . . Ram . | . . Kick . | . . Crush . | . . Escape Stasis . | . . Rewire . | . . Trap . | . . Miscellaneous . | . . Route ------- -11/Scrapyard -10/Materials History --------- Turn | Location | Event 13 | -11/Scrapyard | Discovered new exit (range 16) 36 | -11/Scrapyard | Entered Materials 196 | -10/Materials | Core integrity fell below 50% 216 | -10/Materials | Lost 3 parts (2n1w) 285 | -10/Materials | Core integrity fell below 20% 322 | -10/Materials | Build established: Mutant 489 | -10/Materials | Destroyed by S-10 Pest with Light Assault Rifle Last Messages --------------- 00388_ Acquired 59 matter. 00405_ Com. Wheel destroyed. 00409_ G-34 Mercenary destroyed. 00410_ Lgt. Assault Rifle destroyed. 00414_ G-47 Trooper destroyed. 00417_ Acquired 34 matter. 00418_ Acquired 40 matter. 00434_ Acquired Wheel. 00435_ Dropped EM Pulse Gun. 00448_ W-16 Scout suffers critical hit (Meltdown). 00448_ Signal Interpreter melted. 00448_ Visual Processing Unit melted. 00454_ Acquired 14 matter. 00468_ Triggered Alarm Trap. 00468_ An alarm sounds. 00468_ ALERT: Alarm triggered, dispatching investigation squad. 00469_ ALERT: Hostiles spotted, dispatching reinforcements to Terminal M004. 00471_ O-16 Technician destroyed. 00487_ Destroyed Lgt. Ion Engine. Map ----- +----------------------------------------------------+ | # +?????????????????????????????? | | + #?????????????????????????????? | | # #?????????????????????????????? | | ## # #?????????????????????????????? | | ## ###########?????????????????????????????? | | # ###########????????????????????????????? | | "" ?????????????????????????? | | # T ?????????????????????????? | | # ?????????????????????????? | | # ########### #????????????????????????? | | #######?????????# #????????????????????????? | | " ############# #????????????????????????? | | "" #! #????????????????????????? | | ""*[#* #????????????????????????? | | ""!!/ % """"" #????????????????????????? | | " !!#! """"" #????????????????????????? | | !! # """"" #????????????????????????? | | * ## """"" #????????????????????????? | | =## """"" #????????????????????????? | | ###### """"" ##???????????????????????? | | # ! """"" u#################???????? | | """ # ??????? | | """ + ??????? | | """ # s ??????? | | ### ###+### ###s#######?????????????? | | """ #?# ## # ## @ #????????????????? | | """ #?# ## # ## #????????????????? | | """ #?# ## # ## #????????????????? | | #?# ##== # ## % #????????????????? | | ######?# ##= # ## "T" #????????????????? | | ???????# ## # ## """ #????????????????? | | ???????# ?# # #########????????????????? | | ???????# ?# # #????????????????????????? | | ???????? ?###### #????????????????????????? | | ???????? ??????# #????????????????????????? | | ???????? ??????# #????????????????????????? | | ???????? ??????# #????????????????????????? | | ???????????????# #????????????????????????? | | ???????????????? ?????????????????????????? | | ?????????????????????????????????????????????? | | ?????????????????????????????????????????????? | | ?????????????????????????????????????????????? | | ?????????????????????????????????????????????? | | ?????????????????????????????????????????????? | | ?????????????????????????????????????????????? | | ?????????????????????????????????????????????? | | ?????????????????????????????????????????????? | | ?????????????????????????????????????????????? | | ?????????????????????????????????????????????? | | ?????????????????????????????????????????????? | +----------------------------------------------------+ Best States ------------- Heat Dissipation 25 Energy Generation 10 Energy Capacity 125 Matter Stores 300 Matter Capacity 300 Sight Range 16 Terrain Scan Density 10 Utility Shielding 33 Evasion (%) 44 Item Schematics ----------------- None Robot Schematics ------------------ None Fabricated ------------ Nothing Alien Tech Used ----------------- None Achievements -------------- None Challenges ------------ None Game ------ Seed SpreadCooledExtractor Manual? 0 Play Time 00:07:44 Cumulative 171.6 hours Start 2024.03.18 @ 11:00:14 End 2024.03.18 @ 11:24:03 Sessions 1 Manual Loads 0 Difficulty Rogue Special Mode None Game No. 119 Rogue 107 Adventurer 12 Explorer 0 Win Type - Total 1 Types 1/0/0/0/0/0/0/0/0 Lore% 24 Gallery% 41 Achievement% 31 Wizard Run 0 Options --------- Layout 1 ASCII 0 Keyboard 0 Movement Mouse Keybinds 0 Fullscreen 1 Font 32/SmallcapsGlow Map View 77x35 Zoom Use 0% Tactical HUD 1 Map Filters NONE Filters NONE Steam 1 RUN: baf19c4b-0b3c-427b-8bb4-86c0f84f3c14